lending/lending_fUSD_20260310
["ID","MTS","AMOUNT","RATE_DAILY","PERIOD"]
[408180832,1773185441496,-6044.40193707,0.000178,2]
[408180833,1773185441506,-800.0,0.00017808,2]
[408180834,1773185441515,-500.0,0.00017896,2]
[408180835,1773185441524,-174.54787479,0.00017896,2]
[408180836,1773185441533,-515.7545181,0.000179,2]
[408180837,1773185441543,-240.0,0.00017902,2]
[408180838,1773185441552,-3292.0,0.00018099,2]
[408180839,1773185441561,-3412.22,0.00018214,2]
[408180840,1773185441572,-306.0,0.000184,2]
[408180841,1773185441581,-2760.0,0.000184,2]
[408180842,1773185441591,-500.0,0.00018475,2]
[408180843,1773185441600,-13597.24492667,0.000185,2]
[408180844,1773185441609,-6044.40193707,0.000185,2]
[408180845,1773185441619,-257.61241438,0.00018544,2]
[408180846,1773185441628,-1147.0,0.00018643,2]
[408180847,1773185441637,-877.24,0.00018675,2]
[408180848,1773185441646,-358.84,0.00018712,2]
[408180849,1773185441655,-847.0,0.0001872,2]
[408180850,1773185441665,-2806.0,0.0001872,2]
[408180851,1773185441675,-2355.0,0.0001872,2]
[408180852,1773185441684,-994.0,0.0001872,2]
[408180853,1773185441694,-171.26,0.00018763,2]
[408180854,1773185441703,-168.0,0.00018975,2]
[408180855,1773185441714,-350.0,0.00019,2]
[408180856,1773185441723,-2771.24861715,0.00019,2]
[408180857,1773185441732,-259.96008007,0.00019,2]
[408180858,1773185441742,-2806.0,0.0001904,2]
[408180859,1773185441751,-2806.0,0.0001904,2]
[408180860,1773185441760,-161.0,0.0001904,2]
[408180861,1773185441769,-847.0,0.0001904,2]
[408180862,1773185441779,-200.0,0.00019088,2]
[408180863,1773185441787,-168.0,0.0001913,2]
[408180864,1773185441796,-3000.0,0.00019178,2]
[408180865,1773185441806,-3000.0,0.00019178,2]
[408180866,1773185441815,-3000.0,0.00019178,2]
[408180867,1773185441826,-3000.0,0.00019178,2]
[408180868,1773185441836,-3000.0,0.00019178,2]
[408180869,1773185441846,-3000.0,0.00019178,2]
[408180870,1773185441856,-3000.0,0.00019178,2]
[408180871,1773185441866,-3000.0,0.00019178,2]
[408180872,1773185441876,-3000.0,0.00019178,2]
[408180873,1773185441886,-3000.0,0.00019178,2]
[408180874,1773185441897,-3000.0,0.00019178,2]
[408180875,1773185441907,-3000.0,0.00019178,2]
[408180876,1773185441916,-3000.0,0.00019199,2]
[408180877,1773185441926,-13597.24492667,0.000192,2]
[408180878,1773185441936,-62810.68,0.000192,2]
[408180879,1773185441945,-6044.40193707,0.000192,2]
[408180880,1773185441954,-2475.45,0.0001931,2]
[408180881,1773185441963,-1060.91,0.0001931,2]
[408180882,1773185441973,-500.0,0.00019333,4]
[408180883,1773185441982,-161.0,0.0001936,2]
[408180884,1773185441991,-162.0,0.0001936,2]
[408180885,1773185442001,-2806.0,0.0001936,2]
[408180886,1773185442010,-168.0,0.0001938,2]
[408180887,1773185442019,-168.0,0.00019438,2]
[408180888,1773185442030,-4473.8803,0.000195,2]
[408180889,1773185442039,-637.263475,0.00019521,7]
[408180890,1773185442048,-216.911124,0.00019562,2]
[408180891,1773185442058,-168.0,0.00019565,2]
[408180892,1773185442067,-976.0,0.00019577,2]
[408180893,1773185442077,-292.21,0.000196,30]
[408180894,1773185442086,-1085.65151184,0.000196,2]
[408180895,1773185442096,-1009.09758537,0.000196,2]
[408180896,1773185442105,-1095.14616575,0.000196,2]
[408180897,1773185442149,-1007.66719024,0.000196,2]
[408180898,1773185442158,-1094.13055024,0.000196,2]
[408180899,1773185442168,-1114.4353876,0.000196,2]
[408180900,1773185442178,-1072.58092613,0.000196,2]
[408180901,1773185442188,-1132.76769308,0.000196,2]
[408180902,1773185442199,-1115.37045708,0.000196,2]
[408180903,1773185442208,-1074.2149193,0.000196,2]
[408180904,1773185442218,-1062.12679841,0.000196,2]
[408180905,1773185442227,-1116.76953259,0.000196,2]
[408180906,1773185442237,-1112.20460699,0.000196,2]
[408180907,1773185442246,-1139.04081825,0.000196,2]
[408180908,1773185442255,-1027.11722397,0.000196,2]
[408180909,1773185442264,-1036.41779618,0.000196,2]
[408180910,1773185442274,-1034.47394179,0.000196,2]
[408180911,1773185442283,-1072.53939371,0.000196,2]
[408180912,1773185442292,-1142.25974502,0.000196,2]
[408180913,1773185442302,-1131.36462211,0.000196,2]
[408180914,1773185442311,-1105.52805436,0.000196,2]
[408180915,1773185442320,-1104.5817681,0.000196,2]
[408180916,1773185442329,-1149.50577638,0.000196,2]
[408180917,1773185442339,-1082.62658505,0.000196,2]
[408180918,1773185442348,-1086.12701425,0.000196,2]
[408180919,1773185442357,-1117.94687743,0.000196,2]
[408180920,1773185442367,-1058.25079892,0.000196,2]
[408180921,1773185442376,-1148.81130281,0.000196,2]
[408180922,1773185442386,-1051.22397378,0.000196,2]
[408180923,1773185442395,-1089.60117206,0.000196,2]
[408180924,1773185442409,-1006.92101833,0.000196,2]
[408180925,1773185442418,-1140.78493123,0.000196,2]
[408180926,1773185442427,-955.89027749,0.000196,2]
[408180927,1773185442437,-161.0,0.0001968,2]
[408180928,1773185442447,-847.0,0.0001968,2]
[408180929,1773185442456,-161.0,0.0001968,2]
[408180930,1773185442466,-2806.0,0.0001968,2]
[408180931,1773185442474,-2806.0,0.0001968,2]
[408180932,1773185442484,-2806.0,0.0001968,2]
[408180933,1773185442494,-7800.0,0.000197,7]
[408180934,1773185442503,-168.0,0.00019705,2]
[408180935,1773185442513,-500.0,0.00019725,2]
[408180936,1773185442523,-510.25,0.00019725,2]
[408180937,1773185442532,-174.359556,0.00019726,2]
[408180938,1773185442541,-174.359556,0.00019726,2]
[408180939,1773185442551,-5164.900926,0.00019726,2]
[408180940,1773185442560,-5164.900926,0.00019726,2]
[408180941,1773185442569,-5164.900926,0.00019726,2]
[408180942,1773185442579,-500.0,0.00019726,2]
[408180943,1773185442588,-439.8301473,0.00019726,2]
[408180944,1773185442598,-1766.57,0.00019726,2]
[408180945,1773185442607,-1766.57,0.00019726,2]
[408180946,1773185442617,-1766.57,0.00019726,2]
[408180947,1773185442627,-1766.57,0.00019726,2]
[408180948,1773185442636,-1766.57,0.00019726,2]
[408180949,1773185442646,-1766.57,0.00019726,2]
[408180950,1773185442655,-1766.57,0.00019726,2]
[408180951,1773185442669,-1766.57,0.00019726,2]
[408180952,1773185442678,-1766.57,0.00019726,2]
[408180953,1773185442687,-1766.57,0.00019726,2]
[408180954,1773185442696,-1766.57,0.00019726,2]
[408180955,1773185442706,-1766.57,0.00019726,2]
[408180956,1773185442715,-1766.57,0.00019726,2]
[408180957,1773185442725,-1766.57,0.00019726,2]
[408180958,1773185442735,-1766.57,0.00019726,2]
[408180959,1773185442745,-1766.57,0.00019726,2]
[408180960,1773185442754,-1766.57,0.00019726,2]
[408180961,1773185442764,-1766.57,0.00019726,2]
[408180962,1773185442773,-1766.57,0.00019726,2]
[408180963,1773185442783,-1766.57,0.00019726,2]
[408180964,1773185442793,-1766.57,0.00019726,2]
[408180965,1773185442803,-1766.57,0.00019726,2]
[408180966,1773185442813,-1766.57,0.00019726,2]
[408180967,1773185442822,-1766.78298099,0.00019726,2]
[408180968,1773185442832,-500.0,0.00019726,2]
[408180969,1773185442841,-500.5,0.00019726,2]
[408180970,1773185442851,-1198.41,0.00019726,2]
[408180971,1773185442860,-1198.41,0.00019726,2]
[408180972,1773185442870,-1198.41,0.00019726,2]
[408180973,1773185442880,-1198.41,0.00019726,2]
[408180974,1773185442889,-1198.41,0.00019726,2]
[408180975,1773185442898,-1198.41,0.00019726,2]
[408180976,1773185442908,-1198.41,0.00019726,2]
[408180977,1773185442918,-1198.41,0.00019726,2]
[408180978,1773185442927,-1198.41,0.00019726,2]
[408180979,1773185442937,-1198.41,0.00019726,2]
[408180980,1773185442947,-1198.41,0.00019726,2]
[408180981,1773185442957,-1198.41,0.00019726,2]
[408180982,1773185442966,-1198.41,0.00019726,2]
[408180983,1773185442976,-1198.41,0.00019726,2]
[408180984,1773185442985,-1198.41,0.00019726,2]
[408180985,1773185442994,-1198.41,0.00019726,2]
[408180986,1773185443003,-1198.41,0.00019726,2]
[408180987,1773185443012,-1198.41,0.00019726,2]
[408180988,1773185443023,-1198.41,0.00019726,2]
[408180989,1773185443033,-1198.41,0.00019726,2]
[408180990,1773185443042,-1198.41,0.00019726,2]
[408180991,1773185443051,-1198.41,0.00019726,2]
[408180992,1773185443061,-1198.41,0.00019726,2]
[408180994,1773185443070,-1198.47103818,0.00019726,2]
[408180996,1773185443080,-500.0,0.00019726,2]
[408180999,1773185443090,-500.0,0.00019726,2]
[408181004,1773185443100,-524.54846384,0.00019726,2]
[408181008,1773185443109,-500.0,0.00019726,2]
[408181011,1773185443119,-500.0,0.00019726,2]
[408181014,1773185443128,-500.0,0.00019726,2]
[408181016,1773185443138,-243.10314305,0.00019726,2]
[408181018,1773185443146,-300.0,0.00019726,2]
[408181020,1773185443155,-300.0,0.00019726,2]
[408181021,1773185443164,-300.0,0.00019726,2]
[408181022,1773185443174,-300.0,0.00019726,2]
[408181023,1773185443183,-300.0,0.00019726,2]
[408181024,1773185443193,-300.0,0.00019726,2]
[408181025,1773185443202,-300.0,0.00019726,2]
[408181026,1773185443212,-300.0,0.00019726,2]
[408181027,1773185443222,-300.0,0.00019726,2]
[408181028,1773185443231,-300.0,0.00019726,2]
[408181029,1773185443241,-300.0,0.00019726,2]
[408181030,1773185443250,-300.0,0.00019726,2]
[408181031,1773185443259,-302.3241753,0.00019726,2]
[408181032,1773185443269,-1500.0,0.000198,7]
[408181033,1773185443279,-150.0,0.000198,2]
[408181034,1773185443288,-250.0,0.000198,2]
[408181035,1773185443298,-2542.72101729,0.0001981,2]
[408181036,1773185443307,-250.0,0.00019827,2]
[408181037,1773185443317,-168.0,0.00019837,2]
[408181038,1773185443326,-250.0,0.0001987,2]
[408181039,1773185443336,-172.91703981,0.00019881,2]
[408181040,1773185443346,-160.0,0.00019881,2]
[408181041,1773185443355,-250.0,0.00019898,2]
[408181042,1773185443366,-32933.015,0.000199,2]
[408181043,1773185443375,-1000.0,0.000199,2]
[408181044,1773185443384,-1500.0,0.000199,7]
[408181045,1773185443394,-500.0,0.000199,2]
[408181046,1773185443406,-500.0,0.000199,2]
[408181047,1773185443416,-500.0,0.000199,2]
[408181048,1773185443425,-333.18627222,0.000199,2]
[408181049,1773185443434,-13597.24492667,0.000199,2]
[408181050,1773185443445,-385.38991812,0.000199,2]
[408181051,1773185443454,-635.74737149,0.000199,2]
[408181052,1773185443464,-4609.0,0.00019909,2]
[408181053,1773185443474,-976.0,0.00019948,2]
[408181055,1773185443483,-250.0,0.0001998,2]
[408181056,1773185443492,-756.27523403,0.00019988,2]
[408181057,1773185443502,-756.27523403,0.0001999,2]
[408181058,1773185443511,-151.0,0.00019997,2]
[408181059,1773185443520,-21635.1511436,0.00019998,2]
[408181060,1773185443530,-12069.5394677,0.00019998,2]
[408181061,1773185443539,-1066.449653,0.00019999,5]
[408181062,1773185443548,-1095.49569653,0.00019999,5]
[408181063,1773185443557,-500.0,0.00019999,2]
[408181064,1773185443566,-500.0,0.00019999,2]
[408181065,1773185443576,-500.0,0.00019999,2]
[408181066,1773185443586,-500.0,0.00019999,2]
[408181067,1773185443595,-500.0,0.00019999,2]
[408181068,1773185443604,-500.0,0.00019999,2]
[408181069,1773185443614,-500.0,0.00019999,2]
[408181070,1773185443623,-500.0,0.00019999,2]
[408181071,1773185443632,-500.0,0.00019999,2]
[408181072,1773185443642,-500.0,0.00019999,2]
[408181073,1773185443651,-500.0,0.00019999,2]
[408181074,1773185443661,-500.0,0.00019999,2]
[408181075,1773185443671,-500.0,0.00019999,2]
[408181077,1773185443680,-500.0,0.00019999,2]
[408181078,1773185443689,-500.0,0.00019999,2]
[408181079,1773185443699,-500.0,0.00019999,2]
[408181080,1773185443709,-500.0,0.00019999,2]
[408181081,1773185443718,-500.0,0.00019999,2]
[408181082,1773185443727,-500.0,0.00019999,2]
[408181083,1773185443736,-222.65,0.00019999,2]
[408181084,1773185443745,-500.0,0.00019999,2]
[408181085,1773185443755,-582.04799988,0.00019999,2]
[408181086,1773185443764,-510.25,0.00019999,2]
[408181087,1773185443773,-510.25,0.00019999,2]
[408181088,1773185443783,-510.25,0.00019999,2]
[408181089,1773185443792,-510.25,0.00019999,2]
[408181090,1773185443801,-510.25,0.00019999,2]
[408181091,1773185443811,-510.25,0.00019999,2]
[408181092,1773185443819,-510.25,0.00019999,2]
[408181093,1773185443829,-510.25,0.00019999,2]
[408181094,1773185443839,-510.25,0.00019999,2]
[408181095,1773185443848,-510.25,0.00019999,2]
[408181096,1773185443858,-510.25,0.00019999,2]
[408181097,1773185443867,-510.25,0.00019999,2]
[408181098,1773185443876,-510.45,0.00019999,2]
[408181099,1773185443885,-3000.0,0.00019999,2]
[408181100,1773185443895,-3000.0,0.00019999,2]
[408181101,1773185443904,-3000.0,0.00019999,2]
[408181102,1773185443913,-4140613.59258456,0.0002,2]
[408181103,1773185444027,-134350.92044468,0.0002,2]
[408181104,1773185444150,-3320.02797806,0.000199,2]
[408181105,1773185444242,-1788.0,0.000199,2]
[408181113,1773185446152,-936.37395901,0.000199,2]
[408181114,1773185446161,-150.0,0.000199,2]
[408181115,1773185446170,-3071.32604099,0.0002,2]
[408181117,1773185613874,2173.18,9.518e-05,2]
[408181118,1773185614097,2173.18,0.00010019,2]
[408181119,1773185614313,2173.18,0.0001052,2]
[408181120,1773185614556,2173.18,0.00011021,2]
[408181121,1773185614794,1307.29,0.00011522,2]
[408181122,1773185614816,189.02,0.00011522,2]
[408181123,1773185614838,676.87,0.00011522,2]
[408181124,1773185615011,2173.18,0.00012023,2]
[408181125,1773185615203,2149.96,0.00012524,2]
[408181126,1773185615228,23.22,0.00012524,2]
[408181127,1773185645058,152.0,0.00012696,2]
[408181128,1773185763357,-153.0,0.00012696,3]
[408181129,1773185763386,-152.0,0.00012696,3]
[408181130,1773185766742,152.0,0.00012696,3]
[408181131,1773185769608,-2173.18,0.00013025,2]
[408181132,1773185769797,-2173.18,0.00013526,2]
[408181133,1773185769920,-666.0,0.00013598,2]
[408181134,1773185769948,-300.0,0.00013598,2]
[408181135,1773185784683,-678.07083631,0.00013599,2]
[408181136,1773185784777,-5000.01,0.00013599,2]
[408181137,1773185787539,-5000.01,0.00013599,2]
[408181138,1773185787653,-2379.93173631,0.00013599,2]
[408181139,1773185787680,-240.14652738,0.00013599,2]
[408181140,1773185787769,-2173.18,0.00014027,2]
[408181141,1773185824437,152.0,0.00014078,2]
[408181142,1773185886973,152.0,0.00014078,2]
[408181143,1773186003550,266.0,0.00014078,2]
[408181144,1773186347222,1000.0,0.0002,120]
[408181145,1773186361667,1000.0,0.0002,120]
[408181146,1773186380815,1000.0,0.0002,120]
[408181147,1773186417125,-153.0,0.00014078,2]
[408181148,1773186417145,-152.0,0.00014078,2]
[408181149,1773186417165,-211.43,0.00014229,2]
[408181150,1773186417186,-430.06647091,0.00014255,2]
[408181152,1773186582679,1000.0,0.0002,120]
[408181153,1773186603004,266.0,0.00014078,2]
[408181154,1773186616052,749.2,0.0002,120]
[408181158,1773186632098,-152.0,0.00014078,2]
[408181159,1773186632108,-153.0,0.00014078,2]
[408181160,1773186632118,-1169.93352909,0.00014255,2]
[408181161,1773186632127,-2396.2,0.00014318,2]
[408181162,1773186632136,-154.03015892,0.00014372,2]
[408181163,1773186632145,-371.737028,0.00014472,7]
[408181164,1773186632154,-2173.18,0.00014528,2]
[408181165,1773186632163,-166.66,0.00014619,2]
[408181166,1773186632172,-154.03015891,0.00014631,2]
[408181167,1773186632182,-1200.0,0.00014675,2]
[408181168,1773186632191,-2396.2,0.00014676,2]
[408181169,1773186632201,-150.0,0.00014726,30]
[408181170,1773186632210,-150.0,0.00014726,30]
[408181171,1773186632219,-500.0,0.00014726,30]
[408181172,1773186632228,-150.0,0.00014726,30]
[408181173,1773186632238,-500.0,0.00014726,30]
[408181174,1773186632247,-500.0,0.00014726,30]
[408181175,1773186632256,-500.0,0.00014726,30]
[408181176,1773186632266,-500.0,0.00014726,30]
[408181177,1773186632275,-500.0,0.00014726,30]
[408181178,1773186632284,-150.0,0.00014726,30]
[408181180,1773186632293,-150.0,0.00014726,30]
[408181182,1773186632303,-150.0,0.00014726,30]
[408181183,1773186632312,-500.0,0.00014726,30]
[408181184,1773186632322,-150.0,0.00014726,30]
[408181185,1773186632330,-150.0,0.00014726,30]
[408181187,1773186632340,-500.0,0.00014726,30]
[408181189,1773186632349,-500.0,0.00014726,30]
[408181191,1773186632358,-150.0,0.00014726,30]
[408181192,1773186632367,-500.0,0.00014726,30]
[408181194,1773186632376,-150.0,0.00014726,2]
[408181196,1773186632386,-150.0,0.00014726,2]
[408181198,1773186632395,-150.0,0.00014726,2]
[408181200,1773186632406,-500.0,0.00014726,30]
[408181202,1773186632415,-500.0,0.00014726,30]
[408181204,1773186632424,-150.0,0.00014781,30]
[408181206,1773186632433,-150.0,0.00014781,30]
[408181208,1773186632442,-500.0,0.00014781,30]
[408181211,1773186632452,-150.0,0.00014781,30]
[408181214,1773186632462,-500.0,0.00014781,30]
[408181216,1773186632471,-500.0,0.00014781,30]
[408181218,1773186632480,-500.0,0.00014781,30]
[408181220,1773186632489,-622.46921376,0.00014781,30]
[408181222,1773186632498,-500.0,0.00014781,30]
[408181224,1773186632507,-150.0,0.00014781,30]
[408181226,1773186632516,-150.0,0.00014781,30]
[408181228,1773186632526,-150.0,0.00014781,30]
[408181229,1773186632535,-500.0,0.00014781,30]
[408181231,1773186632544,-150.0,0.00014781,30]
[408181234,1773186632553,-150.09723514,0.00014781,30]
[408181235,1773186632563,-500.0,0.00014781,30]
[408181238,1773186632572,-500.0,0.00014781,30]
[408181240,1773186632581,-150.0,0.00014781,30]
[408181242,1773186632590,-500.0,0.00014781,30]
[408181243,1773186632599,-500.0,0.00014781,30]
[408181245,1773186632608,-500.0,0.00014781,30]
[408181246,1773186632617,-500.0,0.00014781,30]
[408181247,1773186632626,-150.0,0.00014836,30]
[408181248,1773186632635,-150.0,0.00014836,30]
[408181249,1773186632645,-500.0,0.00014836,30]
[408181250,1773186632655,-150.0,0.00014836,30]
[408181251,1773186632664,-500.0,0.00014836,30]
[408181252,1773186632674,-500.0,0.00014836,30]
[408181253,1773186632684,-500.0,0.00014836,30]
[408181254,1773186632693,-500.0,0.00014836,30]
[408181255,1773186632703,-200.0,0.00014836,30]
[408181256,1773186632712,-150.0,0.00014836,30]
[408181257,1773186632721,-150.0,0.00014836,30]
[408181258,1773186632731,-500.0,0.00014836,30]
[408181259,1773186632743,-150.0,0.00014836,30]
[408181260,1773186632752,-500.0,0.00014836,30]
[408181261,1773186632762,-150.0,0.00014836,30]
[408181262,1773186632771,-300.0,0.00014836,30]
[408181263,1773186632781,-200.0,0.00014836,30]
[408181264,1773186632790,-500.0,0.00014836,30]
[408181265,1773186632799,-500.0,0.00014836,30]
[408181266,1773186632808,-154.03015891,0.00014889,2]
[408181267,1773186632817,-203.75048617,0.0001489,30]
[408181268,1773186632827,-270.89067282,0.0001489,30]
[408181269,1773186632836,-500.0,0.0001489,30]
[408181270,1773186632845,-150.0,0.0001489,30]
[408181271,1773186632856,-500.0,0.0001489,30]
[408181272,1773186632865,-500.0,0.0001489,30]
[408181273,1773186632874,-500.0,0.0001489,30]
[408181274,1773186632883,-641.0,0.0001489,30]
[408181275,1773186632892,-150.0,0.0001489,30]
[408181276,1773186632901,-200.0,0.0001489,30]
[408181277,1773186632912,-500.0,0.0001489,30]
[408181278,1773186632921,-150.0,0.0001489,30]
[408181279,1773186632930,-500.0,0.0001489,30]
[408181280,1773186632939,-526.0,0.0001489,30]
[408181281,1773186632948,-500.0,0.0001489,30]
[408181282,1773186632961,-153.15462612,0.000149,2]
[408181283,1773186632970,-377.0,0.00014905,2]
[408181284,1773186632979,-1435.0,0.00014908,2]
[408181285,1773186632988,-166.66,0.00014926,2]
[408181286,1773186632997,-499.99,0.00014926,2]
[408181287,1773186633006,-299.99,0.00014926,2]
[408181288,1773186633016,-2500.0,0.00014929,2]
[408181289,1773186633026,-500.0,0.00014945,30]
[408181290,1773186633035,-150.0,0.00014945,30]
[408181291,1773186633044,-500.0,0.00014945,30]
[408181292,1773186633053,-400.0,0.00014945,30]
[408181293,1773186633062,-450.0,0.00014945,30]
[408181294,1773186633071,-150.0,0.00014945,30]
[408181295,1773186633081,-500.0,0.00014945,30]
[408181296,1773186633090,-150.0,0.00014945,30]
[408181297,1773186633099,-500.0,0.00014945,30]
[408181298,1773186633109,-323.65373692,0.00014945,30]
[408181299,1773186633118,-55100.76146436,0.00014979,2]
[408181300,1773186633127,-150.0,0.00014988,2]
[408181301,1773186633136,-19226.00259459,0.00014989,2]
[408181302,1773186633263,-54477.63740541,0.00014989,2]
[408181303,1773186633272,-9999.99,0.00014989,2]
[408181304,1773186633282,-1382.26246997,0.0001499,2]
[408181305,1773186633307,-7995.85051787,0.0001499,2]
[408181306,1773186633319,-621.87701216,0.0001499,2]
[408181307,1773186633328,-72.12429784,0.0001499,2]
[408181308,1773186633339,-78.86570216,0.0001499,2]
[408181309,1773186633348,-150.99,0.0001499,2]
[408181310,1773186633357,-150.0,0.00014993,2]
[408181311,1773186633367,-230.79429784,0.00014999,2]
[408181312,1773186633378,-75.38570216,0.00014999,2]
[408181313,1773186633387,-453.78391098,0.00014999,2]
[408181314,1773186633396,-156.21003878,0.00014999,2]
[408181321,1773186638202,-433.71565809,0.00014999,2]
[408181322,1773186638212,-120.36773859,0.00014999,2]
[408181323,1773186638335,-381.50535899,0.00014999,2]
[408181324,1773186638344,-500.0,0.00014999,2]
[408181325,1773186638353,-500.0,0.00014999,2]
[408181326,1773186638361,-500.0,0.00014999,2]
[408181327,1773186638370,-500.0,0.00014999,2]
[408181328,1773186638379,-500.0,0.00014999,2]
[408181329,1773186638387,-500.0,0.00014999,2]
[408181330,1773186638396,-500.0,0.00014999,2]
[408181331,1773186638405,-500.0,0.00014999,2]
[408181332,1773186638414,-500.0,0.00014999,2]
[408181333,1773186638422,-500.0,0.00014999,2]
[408181334,1773186638431,-222.78770079,0.00014999,2]
[408181335,1773186638439,-500.0,0.00014999,2]
[408181336,1773186638448,-499.43863935,0.00014999,2]
[408181337,1773186638459,-0.56136065,0.00014999,2]
[408181338,1773186638467,-500.0,0.00014999,2]
[408181339,1773186638476,-500.0,0.00014999,2]
[408181340,1773186638485,-350.0,0.00014999,2]
[408181341,1773186638494,-7321.29,0.00014999,2]
[408181342,1773186638503,-9999.99,0.00014999,2]
[408181343,1773186638512,-313.56,0.00014999,2]
[408181344,1773186638520,-1453.47,0.00014999,2]
[408181345,1773186638531,-9999.99,0.00014999,2]
[408181346,1773186638540,-1187.73,0.00014999,2]
[408181347,1773186638550,-250.0,0.00015,30]
[408181348,1773186638559,-500.0,0.00015,30]
[408181350,1773186638569,-250.0,0.00015,30]
[408181352,1773186638578,-499.0,0.00015,30]
[408181354,1773186638587,-250.0,0.00015,30]
[408181356,1773186638596,-250.0,0.00015,30]
[408181357,1773186638606,-250.0,0.00015,2]
[408181359,1773186638615,-500.0,0.00015,30]
[408181361,1773186638624,-500.0,0.00015,30]
[408181363,1773186638634,-600.18,0.00015,30]
[408181365,1773186638643,-500.0,0.00015,30]
[408181366,1773186638652,-211.43,0.0001502,2]
[408181367,1773186638662,-2173.18,0.00015029,2]
[408181368,1773186638671,-2396.2,0.00015034,2]
[408181369,1773186638680,-268.23,0.00015046,2]
[408181370,1773186638690,-204.83861542,0.00015055,30]
[408181371,1773186638699,-500.0,0.00015055,30]
[408181372,1773186638708,-500.0,0.00015212,2]
[408181373,1773186638717,-500.0,0.00015212,2]
[408181374,1773186638726,-150.0,0.00015212,2]
[408181375,1773186638735,-500.0,0.00015212,2]
[408181376,1773186638748,-150.0,0.00015212,2]
[408181377,1773186638758,-166.66,0.00015234,2]
[408181378,1773186638768,-500.0,0.00015267,2]
[408181379,1773186638778,-501.10057062,0.00015267,2]
[408181380,1773186638792,-150.0,0.00015267,2]
[408181381,1773186638802,-500.0,0.00015267,2]
[408181382,1773186638811,-150.0,0.00015267,2]
[408181383,1773186638822,-306.18,0.00015273,2]
[408181384,1773186638831,-151.97192574,0.00015322,2]
[408181385,1773186638841,-150.0,0.00015322,2]
[408181386,1773186638850,-500.0,0.00015322,2]
[408181387,1773186638859,-150.0,0.00015322,2]
[408181388,1773186638868,-500.0,0.00015329,30]
[408181389,1773186638878,-150.0,0.00015376,2]
[408181390,1773186638887,-371.46936844,0.00015376,2]
[408181391,1773186638896,-150.0,0.00015376,2]
[408181392,1773186638906,-2396.2,0.00015392,2]
[408181393,1773186638916,-150.0,0.00015431,2]
[408181394,1773186638925,-150.0,0.00015431,2]
[408181395,1773186638934,-500.0,0.0001544,2]
[408181397,1773186638944,-150.0,0.00015457,2]
[408181398,1773186638953,-150.0,0.00015457,2]
[408181399,1773186638962,-500.0,0.00015457,2]
[408181400,1773186638972,-150.0,0.00015457,2]
[408181401,1773186638981,-150.0,0.00015457,2]
[408181402,1773186638990,-154.20580415,0.00015457,2]
[408181403,1773186638999,-150.0,0.00015457,2]
[408181404,1773186639008,-150.0,0.00015457,2]
[408181405,1773186639017,-500.0,0.00015457,2]
[408181406,1773186639026,-500.0,0.00015457,2]
[408181407,1773186639035,-150.81923528,0.00015457,2]
[408181408,1773186639045,-500.0,0.00015457,2]
[408181409,1773186639053,-150.0,0.00015457,2]
[408181410,1773186639062,-150.0,0.00015457,2]